{"text_format":"3","workbook":"xlsx","n_sheets":2,"sheets":["Início","Planner de Orçamento de Feriado"],"not_rendered":{"defined_names":1},"read":"whole","date_system":"1900"}

{"sheet":"Início","index":0,"n_rows":4,"n_cols":2,"rows_kept":4}
[null,"Como usar este modelo"]
[null,"Controle suas despesas com este planejador de orçamento de Feriado."]
[null,"Para começar, insira suas informações orçamento despesas reais e em cada tabela de categoria."]
[null,"O orçamento de férias, O valor total real gastoe a Diferença são calculados automaticamente para você."]

{"sheet":"Planner de Orçamento de Feriado","index":1,"n_rows":36,"n_cols":14,"rows_kept":36,"merged":[[0,2,5,7],[2,10,2,11],[8,2,8,5],[8,10,8,13],[18,2,18,5],[18,10,18,13],[29,2,29,5],[29,10,29,13]]}
[null,null,"Planner de Orçamento de Feriado"]
[]
[{"$nulls":10},"ORÇAMENTO DE NATAL",null,null,{"$f":"SUM(Presentes[Orçamento],Embalagem[Orçamento],(Viagem[Orçamento],(Refeições[Orçamento],(Entretenimento[Orçamento],Diversos[Orçamento]))))","v":{"v":750,"d":"R$ 750.00"}}]
[{"$nulls":10},"GASTO REAL",null,null,{"$f":"SUM((Presentes[Real],(Embalagem[Real],(Viagem[Real],(Refeições[Real],(Entretenimento[Real],(Diversos[Real])))))))","v":{"v":820,"d":"R$ 820.00"}}]
[]
[{"$nulls":10},"DIFERENÇA (acima/abaixo do orçamento)",null,null,{"$f":"SUM(N3-N4)","v":{"v":-70,"d":"-R$ 70.00"}}]
[]
[]
[null,null,"GIFTS",{"$nulls":7},"REFEIÇÃOS DE FIM DE ANO"]
[null,null,"Item","Orçamento","Real","Diferença",{"$nulls":4},"Item","Orçamento","Real","Diferença"]
[null,null,"Família",{"v":500,"d":"R$ 500.00"},{"v":495,"d":"R$ 495.00"},{"$f":"Presentes[[#This Row],[Orçamento]]-Presentes[[#This Row],[Real]]","v":{"v":5,"d":"R$ 5.00"}},{"$nulls":4},"Supermercado",null,null,{"$f":"Refeições[[#This Row],[Orçamento]]-Refeições[[#This Row],[Real]]","v":{"v":0,"d":"R$ 0.00"}}]
[null,null,"Amigos",{"v":250,"d":"R$ 250.00"},{"v":325,"d":"R$ 325.00"},{"$f":"Presentes[[#This Row],[Orçamento]]-Presentes[[#This Row],[Real]]","v":{"v":-75,"d":"-R$ 75.00"}},{"$nulls":4},"Bebidas",null,null,{"$f":"Refeições[[#This Row],[Orçamento]]-Refeições[[#This Row],[Real]]","v":{"v":0,"d":"R$ 0.00"}}]
[null,null,"Colegas de trabalho",null,null,{"$f":"Presentes[[#This Row],[Orçamento]]-Presentes[[#This Row],[Real]]","v":{"v":0,"d":"R$ 0.00"}},{"$nulls":4},"Decorações",null,null,{"$f":"Refeições[[#This Row],[Orçamento]]-Refeições[[#This Row],[Real]]","v":{"v":0,"d":"R$ 0.00"}}]
[null,null,"Professores, babás etc.",null,null,{"$f":"Presentes[[#This Row],[Orçamento]]-Presentes[[#This Row],[Real]]","v":{"v":0,"d":"R$ 0.00"}},{"$nulls":4},"Outros (guia na última coluna desta linha para Adicionar linha)",null,null,{"$f":"Refeições[[#This Row],[Orçamento]]-Refeições[[#This Row],[Real]]","v":{"v":0,"d":"R$ 0.00"}}]
[null,null,"Doações de caridade",null,null,{"$f":"Presentes[[#This Row],[Orçamento]]-Presentes[[#This Row],[Real]]","v":{"v":0,"d":"R$ 0.00"}},{"$nulls":7},{"$f":"Refeições[[#This Row],[Orçamento]]-Refeições[[#This Row],[Real]]","v":{"v":0,"d":"R$ 0.00"}}]
[null,null,"Outros (guia na última coluna desta linha para Adicionar linha)",null,null,{"$f":"Presentes[[#This Row],[Orçamento]]-Presentes[[#This Row],[Real]]","v":{"v":0,"d":"R$ 0.00"}}]
[null,null,"Total",{"$f":"SUBTOTAL(109,Presentes[Orçamento])","v":{"v":750,"d":"R$ 750.00"}},{"$f":"SUBTOTAL(109,Presentes[Real])","v":{"v":820,"d":"R$ 820.00"}},{"$f":"SUBTOTAL(109,Presentes[Diferença])","v":{"v":-70,"d":"-R$ 70.00"}},{"$nulls":4},"Total",{"$f":"SUBTOTAL(109,Refeições[Orçamento])","v":{"v":0,"d":"R$ 0.00"}},{"$f":"SUBTOTAL(109,Refeições[Real])","v":{"v":0,"d":"R$ 0.00"}},{"$f":"SUBTOTAL(109,Refeições[Diferença])","v":{"v":0,"d":"R$ 0.00"}}]
[]
[null,null,"EMBALAGEM",{"$nulls":7},"ENTRETENIMENTO"]
[null,null,"Item","Orçamento","Real","Diferença",{"$nulls":4},"Item","Orçamento","Real","Diferença"]
[null,null,"Embalagem de presente",null,null,{"$f":"Embalagem[[#This Row],[Orçamento]]-Embalagem[[#This Row],[Real]]","v":{"v":0,"d":"R$ 0.00"}},{"$nulls":4},"Ajuda de terceiros (barman, serviço de bufê, limpeza, etc.)",null,null,{"$f":"Entretenimento[[#This Row],[Orçamento]]-Entretenimento[[#This Row],[Real]]","v":{"v":0,"d":"R$ 0.00"}}]
[null,null,"Etiquetas",null,null,{"$f":"Embalagem[[#This Row],[Orçamento]]-Embalagem[[#This Row],[Real]]","v":{"v":0,"d":"R$ 0.00"}},{"$nulls":4},"Decorações",null,null,{"$f":"Entretenimento[[#This Row],[Orçamento]]-Entretenimento[[#This Row],[Real]]","v":{"v":0,"d":"R$ 0.00"}}]
[null,null,"Materiais (faixas, fita, etc.)",null,null,{"$f":"Embalagem[[#This Row],[Orçamento]]-Embalagem[[#This Row],[Real]]","v":{"v":0,"d":"R$ 0.00"}},{"$nulls":4},"Comida e bebidas",null,null,{"$f":"Entretenimento[[#This Row],[Orçamento]]-Entretenimento[[#This Row],[Real]]","v":{"v":0,"d":"R$ 0.00"}}]
[null,null,"Caixas",null,null,{"$f":"Embalagem[[#This Row],[Orçamento]]-Embalagem[[#This Row],[Real]]","v":{"v":0,"d":"R$ 0.00"}},{"$nulls":4},"Vestuário",null,null,{"$f":"Entretenimento[[#This Row],[Orçamento]]-Entretenimento[[#This Row],[Real]]","v":{"v":0,"d":"R$ 0.00"}}]
[null,null,"Postagem",null,null,{"$f":"Embalagem[[#This Row],[Orçamento]]-Embalagem[[#This Row],[Real]]","v":{"v":0,"d":"R$ 0.00"}},{"$nulls":4},"Ingressos",null,null,{"$f":"Entretenimento[[#This Row],[Orçamento]]-Entretenimento[[#This Row],[Real]]","v":{"v":0,"d":"R$ 0.00"}}]
[null,null,"Outros (guia na última coluna desta linha para Adicionar linha)",null,null,{"$f":"Embalagem[[#This Row],[Orçamento]]-Embalagem[[#This Row],[Real]]","v":{"v":0,"d":"R$ 0.00"}},{"$nulls":4},"Jantares fora",null,null,{"$f":"Entretenimento[[#This Row],[Orçamento]]-Entretenimento[[#This Row],[Real]]","v":{"v":0,"d":"R$ 0.00"}}]
[{"$nulls":10},"Outros (guia na última coluna desta linha para Adicionar linha)",null,null,{"$f":"Entretenimento[[#This Row],[Orçamento]]-Entretenimento[[#This Row],[Real]]","v":{"v":0,"d":"R$ 0.00"}}]
[null,null,"Total",{"$f":"SUBTOTAL(109,Embalagem[Orçamento])","v":{"v":0,"d":"R$ 0.00"}},{"$f":"SUBTOTAL(109,Embalagem[Real])","v":{"v":0,"d":"R$ 0.00"}},{"$f":"SUBTOTAL(109,Embalagem[Diferença])","v":{"v":0,"d":"R$ 0.00"}},{"$nulls":4},"Total",{"$f":"SUBTOTAL(109,Entretenimento[Orçamento])","v":{"v":0,"d":"R$ 0.00"}},{"$f":"SUBTOTAL(109,Entretenimento[Real])","v":{"v":0,"d":"R$ 0.00"}},{"$f":"SUBTOTAL(109,Entretenimento[Diferença])","v":{"v":0,"d":"R$ 0.00"}}]
[]
[null,null,"VIAJE",{"$nulls":7},"DIVERSOS"]
[null,null,"Item","Orçamento","Real","Diferença",{"$nulls":4},"Item","Orçamento","Real","Diferença"]
[null,null,"Passagem aérea",null,null,{"$f":"Viagem[[#This Row],[Orçamento]]-Viagem[[#This Row],[Real]]","v":{"v":0,"d":"R$ 0.00"}},{"$nulls":4},"Fotos Natalinas",null,null,{"$f":"Diversos[[#This Row],[Orçamento]]-Diversos[[#This Row],[Real]]","v":{"v":0,"d":"R$ 0.00"}}]
[null,null,"Hospedagem",null,null,{"$f":"Viagem[[#This Row],[Orçamento]]-Viagem[[#This Row],[Real]]","v":{"v":0,"d":"R$ 0.00"}},{"$nulls":4},"Combustível ",null,null,{"$f":"Diversos[[#This Row],[Orçamento]]-Diversos[[#This Row],[Real]]","v":{"v":0,"d":"R$ 0.00"}}]
[null,null,"Transporte",null,null,{"$f":"Viagem[[#This Row],[Orçamento]]-Viagem[[#This Row],[Real]]","v":{"v":0,"d":"R$ 0.00"}},{"$nulls":4},"Outros (guia na última coluna desta linha para Adicionar linha)",null,null,{"$f":"Diversos[[#This Row],[Orçamento]]-Diversos[[#This Row],[Real]]","v":{"v":0,"d":"R$ 0.00"}}]
[null,null,"Outros (guia na última coluna desta linha para Adicionar linha)",null,null,{"$f":"Viagem[[#This Row],[Orçamento]]-Viagem[[#This Row],[Real]]","v":{"v":0,"d":"R$ 0.00"}}]
[null,null,"Total",{"$f":"SUBTOTAL(109,Viagem[Orçamento])","v":{"v":0,"d":"R$ 0.00"}},{"$f":"SUBTOTAL(109,Viagem[Real])","v":{"v":0,"d":"R$ 0.00"}},{"$f":"SUBTOTAL(109,Viagem[Diferença])","v":{"v":0,"d":"R$ 0.00"}},{"$nulls":4},"Total",{"$f":"SUBTOTAL(109,Diversos[Orçamento])","v":{"v":0,"d":"R$ 0.00"}},{"$f":"SUBTOTAL(109,Diversos[Real])","v":{"v":0,"d":"R$ 0.00"}},{"$f":"SUBTOTAL(109,Diversos[Diferença])","v":{"v":0,"d":"R$ 0.00"}}]